fUSD/lending_fUSD_20240419
["ID","MTS","AMOUNT","RATE_DAILY","PERIOD"]
[322946884,1713535948201,-500.0,0.00016816,2]
[322946885,1713535948211,-873.4,0.00016816,2]
[322946886,1713535948220,-8830.11,0.00016816,2]
[322946887,1713535948230,-500.0,0.00016816,2]
[322946888,1713535948239,-1595.0,0.00016816,2]
[322946889,1713535948249,-2162.76,0.00016816,2]
[322946890,1713535948258,-1091.99,0.00016816,2]
[322946891,1713535948268,-500.0,0.00016816,2]
[322946892,1713535948277,-844.02,0.00016816,2]
[322946893,1713535948287,-977.92,0.00016816,2]
[322946894,1713535948297,-6610.26,0.00016816,2]
[322946895,1713535948306,-12410.2,0.00016816,2]
[322946896,1713535948315,-417.96,0.00016816,2]
[322946897,1713535948325,-443.27522983,0.00016816,2]
[322946898,1713535948335,-766.81,0.00016816,2]
[322946899,1713535948344,-500.0,0.00016816,2]
[322946900,1713535948354,-8471.72,0.00016816,2]
[322946901,1713535948368,-16804.52,0.00016816,2]
[322946902,1713535948378,-3856.78,0.00016816,2]
[322946903,1713535948388,-1195.15,0.00016816,2]
[322946904,1713535948397,-500.0,0.00016816,2]
[322946905,1713535948407,-1131.0,0.00016816,2]
[322946906,1713535948416,-1042.76,0.00016816,2]
[322946907,1713535948427,-1809.28,0.00016816,2]
[322946908,1713535948436,-500.0,0.00016817,2]
[322946909,1713535948446,-666.6,0.00016817,2]
[322946910,1713535948455,-1978.3,0.00016817,2]
[322946911,1713535948465,-2010.16,0.00016817,2]
[322946912,1713535948474,-2635.8,0.00016817,2]
[322946913,1713535948484,-2063.33,0.00016817,2]
[322946914,1713535948493,-3414.14,0.00016817,2]
[322946915,1713535948504,-3118.43,0.00016817,2]
[322946916,1713535948513,-2239.17,0.00016817,2]
[322946917,1713535948523,-3303.18,0.00016817,2]
[322946918,1713535948532,-2382.91,0.00016817,2]
[322946919,1713535948541,-893.25,0.00016817,2]
[322946920,1713535948550,-1654.92,0.00016817,2]
[322946921,1713535948559,-2444.46,0.00016817,2]
[322946922,1713535948569,-500.0,0.00016817,2]
[322946923,1713535948578,-500.0,0.00016817,2]
[322946924,1713535948588,-944.2,0.00016817,2]
[322946925,1713535948598,-2665.73,0.00016817,2]
[322946926,1713535948609,-1302.7,0.00016817,2]
[322946927,1713535948619,-3681.3,0.00016817,2]
[322946928,1713535948634,-1964.51,0.00016817,2]
[322946929,1713535948644,-2547.0,0.00016817,2]
[322946930,1713535948653,-2967.73,0.00016817,2]
[322946931,1713535948662,-2335.23,0.00016817,2]
[322946932,1713535948673,-1307.99,0.00016817,2]
[322946933,1713535948683,-1016.31,0.00016817,2]
[322946934,1713535948692,-1727.93,0.00016817,2]
[322946935,1713535948703,-1260.39,0.00016817,2]
[322946936,1713535948712,-1632.79,0.00016817,2]
[322946937,1713535948722,-2550.36,0.00016817,2]
[322946938,1713535948731,-500.0,0.00016817,2]
[322946939,1713535948741,-2443.63,0.00016817,2]
[322946940,1713535948750,-2630.72,0.00016817,2]
[322946941,1713535948759,-3003.61,0.00016817,2]
[322946942,1713535948769,-1886.41,0.00016817,2]
[322946943,1713535948778,-3017.64,0.00016817,2]
[322946944,1713535948788,-1140.79,0.00016817,2]
[322946945,1713535948797,-1299.19,0.00016817,2]
[322946946,1713535948807,-1616.39,0.00016817,2]
[322946947,1713535948816,-500.0,0.00016817,2]
[322946948,1713535948825,-500.0,0.00016817,2]
[322946949,1713535948835,-753.72,0.00016817,2]
[322946950,1713535948844,-500.0,0.00016817,2]
[322946951,1713535948854,-2638.02,0.00016817,2]
[322946952,1713535948867,-1362.66,0.00016817,2]
[322946953,1713535948876,-561.12,0.00016817,2]
[322946954,1713535948885,-1379.06,0.00016817,2]
[322946955,1713535948894,-742.62,0.00016817,2]
[322946956,1713535948904,-500.0,0.00016817,2]
[322946957,1713535948914,-1011.65,0.00016817,2]
[322946958,1713535948924,-500.0,0.00016817,2]
[322946959,1713535948933,-2543.95,0.00016817,2]
[322946960,1713535948943,-4473.17,0.00016817,2]
[322946961,1713535948952,-2552.14,0.00016817,2]
[322946962,1713535948962,-1028.52,0.00016817,2]
[322946963,1713535948971,-1252.41,0.00016817,2]
[322946964,1713535948980,-500.0,0.00016817,2]
[322946965,1713535948990,-1567.94,0.00016817,2]
[322946966,1713535948999,-3390.43,0.00016817,2]
[322946967,1713535949008,-786.27,0.00016817,2]
[322946968,1713535949017,-2599.5,0.00016817,2]
[322946969,1713535949026,-6238.49,0.00016817,2]
[322946970,1713535949036,-2793.9,0.00016817,2]
[322946971,1713535949045,-2970.02,0.00016817,2]
[322946972,1713535949054,-3456.79,0.00016817,2]
[322946973,1713535949063,-5261.38,0.00016817,2]
[322946974,1713535949073,-1844.51,0.00016817,2]
[322946975,1713535949082,-1171.98,0.00016817,2]
[322946976,1713535949091,-3653.25,0.00016817,2]
[322946977,1713535949100,-3070.45,0.00016817,2]
[322946978,1713535949112,-500.0,0.00016817,2]
[322946979,1713535949122,-3400.27,0.00016817,2]
[322946980,1713535949131,-3462.89,0.00016817,2]
[322946981,1713535949141,-3198.72,0.00016817,2]
[322946982,1713535949151,-3593.12,0.00016817,2]
[322946983,1713535949160,-500.0,0.00016817,2]
[322946984,1713535949170,-4054.13,0.00016817,2]
[322946985,1713535949179,-4947.91,0.00016817,2]
[322946986,1713535949189,-538.19,0.00016817,2]
[322946987,1713535949198,-500.0,0.00016817,2]
[322946988,1713535949208,-684.87,0.00016817,2]
[322946989,1713535949217,-7984.31474331,0.00016832,2]
[322946990,1713535949226,-255236.65878024,0.00016861,2]
[322946991,1713535949236,-108455.03577573,0.00016863,2]
[322946992,1713535949245,-587.4,0.00016864,2]
[322946993,1713535949254,-1565.95,0.00016864,2]
[322946994,1713535949264,-1606.24,0.00016864,2]
[322946995,1713535949273,-500.0,0.00016864,2]
[322946996,1713535949282,-2003.17,0.00016864,2]
[322946997,1713535949291,-2159.88,0.00016864,2]
[322946998,1713535949301,-1228.96,0.00016864,2]
[322946999,1713535949311,-500.0,0.00016864,2]
[322947000,1713535949320,-599.08,0.00016864,2]
[322947001,1713535949329,-500.0,0.00016864,2]
[322947002,1713535949339,-500.0,0.00016864,2]
[322947003,1713535949348,-500.0,0.00016864,2]
[322947004,1713535949358,-1457.52,0.00016864,2]
[322947005,1713535949367,-1009.4,0.00016864,2]
[322947006,1713535949377,-1808.96,0.00016864,2]
[322947007,1713535949386,-500.0,0.00016864,2]
[322947008,1713535949395,-1418.2,0.00016864,2]
[322947009,1713535949404,-747.28,0.00016864,2]
[322947010,1713535949414,-1076.39,0.00016864,2]
[322947011,1713535949423,-1362.71,0.00016864,2]
[322947012,1713535949432,-339.73904884,0.00016864,2]
[322947013,1713535949441,-500.0,0.00016864,2]
[322947014,1713535949450,-500.0,0.00016864,2]
[322947015,1713535949459,-1981.46,0.00016864,2]
[322947016,1713535949469,-1587.88,0.00016864,2]
[322947017,1713535949478,-500.0,0.00016864,2]
[322947018,1713535949487,-798.5,0.00016864,2]
[322947019,1713535949496,-500.0,0.00016864,2]
[322947020,1713535949506,-886.56,0.00016864,2]
[322947021,1713535949515,-626.0,0.00016864,2]
[322947022,1713535949525,-500.0,0.00016864,2]
[322947023,1713535949534,-500.0,0.00016864,2]
[322947024,1713535949543,-826.57,0.00016864,2]
[322947025,1713535949554,-500.0,0.00016864,2]
[322947026,1713535949564,-500.0,0.00016864,2]
[322947027,1713535949574,-1053.29,0.00016864,2]
[322947028,1713535949583,-608.46,0.00016864,2]
[322947029,1713535949592,-500.0,0.00016864,2]
[322947030,1713535949601,-607.00154214,0.00016864,2]
[322947031,1713535950761,-264.16845786,0.00016864,2]
[322947032,1713535950770,-254.27154212,0.00016864,2]
[322947033,1713535950828,-500.0,0.00015172,2]
[322947034,1713535950838,-500.0,0.00016042,2]
[322947035,1713535950848,-245.72845788,0.00016864,2]
[322947036,1713535950858,-1278.04,0.00016864,2]
[322947037,1713535950868,-167.98489379,0.00016864,2]
[322947038,1713535950878,-500.0,0.00016864,2]
[322947039,1713535950888,-1108.46,0.00016864,2]
[322947040,1713535950897,-982.9,0.00016864,2]
[322947041,1713535950906,-14.47174181,0.00016864,2]
[322947042,1713535950939,-586.09,0.00016268,2]
[322947043,1713535950949,-1029.14825819,0.00016864,2]
[322947044,1713535950958,-1582.21,0.00016864,2]
[322947045,1713535950967,-809.69,0.00016864,2]
[322947046,1713535950976,-540.04,0.00016864,2]
[322947047,1713535950986,-500.0,0.00016864,2]
[322947048,1713535950995,-503.53,0.00016864,2]
[322947049,1713535951004,-500.0,0.00016864,2]
[322947050,1713535951013,-209.6079793,0.00016864,2]
[322947051,1713535952080,-500.0,0.00015446,2]
[322947052,1713535952090,-500.0,0.0001572,2]
[322947053,1713535952099,-276.8161,0.00015994,2]
[322947054,1713535952120,-223.1839,0.00015994,2]
[322947055,1713535952129,-563.02617,0.00016092,2]
[322947056,1713535952140,-999.6,0.00016092,2]
[322947057,1713535952197,-511.90396074,0.00016092,2]
[322947058,1713535959938,-150.0,0.00014797,2]
[322947059,1713535963960,-150.0,0.00014151,2]
[322947060,1713535968542,-150.0,0.0001415,2]
[322947061,1713535972774,-150.0,0.00014149,2]
[322947062,1713535977226,-150.0,0.00014149,2]
[322947063,1713535980722,-150.0,0.00014148,2]
[322947064,1713535984078,-150.0,0.00014147,2]
[322947065,1713535988811,-150.0,0.00014146,2]
[322947066,1713535993253,-150.0,0.00014146,2]
[322947067,1713535998042,-76.66109702,0.00014146,2]
[322947068,1713535998062,-73.33890298,0.00014146,2]
[322947069,1713536000971,-150.0,0.00014146,2]
[322947070,1713536002270,-150.0,0.00014146,2]
[322947071,1713536004314,-185.40109037,0.00014146,2]
[322947072,1713536005524,-185.40109037,0.00014146,2]
[322947073,1713536006621,-185.40109037,0.00014146,2]
[322947074,1713536007567,-185.40109037,0.00014146,2]
[322947075,1713536008406,-126.17324348,0.00014146,2]
[322947076,1713536012344,59.22784689,0.00014032,2]
[322947077,1713536012365,185.40109037,0.00014032,2]
[322947078,1713536012385,185.40109037,0.00014032,2]
[322947079,1713536013087,-185.40109037,0.00014032,2]
[322947080,1713536014808,-130.868882,0.00014032,2]
[322947121,1713536483720,164.94,0.0001611,15]
[322947122,1713536954320,164.94,0.0001611,15]
[322947139,1713537032208,-367.85532954,0.0001156,2]
[322947140,1713537032220,-2796.65461008,0.0001156,2]
[322947141,1713537032230,-545.019521,0.00011561,2]
[322947142,1713537032240,-3757.73056516,0.00011616,2]
[322947143,1713537032250,-2140.59530376,0.00011617,2]
[322947144,1713537032289,-257.21,0.00011617,2]
[322947145,1713537032301,-1922.94686106,0.00011617,2]
[322947146,1713537032311,-150.0,0.00011618,2]
[322947147,1713537032320,-7338.41932417,0.00011618,2]
[322947148,1713537032330,-464.99858771,0.00011624,2]
[322947149,1713537032340,-171.16,0.00011625,2]
[322947150,1713537032349,-1034.58,0.00013294,2]
[322947151,1713537032358,-9119.99,0.00013356,2]
[322947152,1713537032368,-221.93,0.00013389,2]
[322947153,1713537032377,-195.10113426,0.00013468,2]
[322947154,1713537032387,-150.99,0.00013569,2]
[322947155,1713537032396,-778.07,0.00013649,2]
[322947156,1713537032406,-163.02,0.0001367,2]
[322947157,1713537032415,-657.97,0.0001367,2]
[322947158,1713537032424,-413.55,0.00013699,2]
[322947159,1713537032433,-200.0,0.00013699,2]
[322947160,1713537032448,-500.0,0.00013699,2]
[322947161,1713537032457,-163.02,0.00013813,2]
[322947162,1713537032468,-171.16,0.00013889,2]
[322947163,1713537032478,-163.02,0.00013955,2]
[322947164,1713537032488,-1350.0,0.00014032,2]
[322947165,1713537032497,-163.02,0.00014098,2]
[322947166,1713537032506,-808.46925549,0.00014146,2]
[322947167,1713537032515,-155.44721549,0.00014146,2]
[322947168,1713537032525,-271.48461939,0.00014146,2]
[322947169,1713537032535,-329.82093178,0.00014146,2]
[322947170,1713537032545,-1711.04350119,0.00014147,2]
[322947171,1713537032554,-378.84360222,0.00014148,2]
[322947172,1713537032563,-405.05491754,0.00014149,2]
[322947173,1713537032572,-5.0,0.0001415,2]
[322947174,1713537032582,-476.10744486,0.00014151,2]
[322947175,1713537032591,-163.02,0.0001424,2]
[322947176,1713537032601,-150.0,0.00014372,2]
[322947177,1713537032610,-163.02,0.00014383,2]
[322947179,1713537032621,-563.1127,0.00014697,2]
[322947180,1713537032630,-794.453,0.00014697,2]
[322947181,1713537032639,-2154.2782,0.00014697,2]
[322947182,1713537032649,-255.80174823,0.00014747,2]
[322947183,1713537032658,-1349.340975,0.00014782,2]
[322947184,1713537032667,-1000.0,0.00014793,2]
[322947185,1713537032676,-248.69915935,0.00014794,2]
[322947186,1713537032687,-251.14525574,0.00014795,2]
[322947187,1713537032700,-279.35558376,0.00014795,2]
[322947188,1713537032710,-1241.11650794,0.00014795,2]
[322947189,1713537032719,-3079.50911342,0.00014795,2]
[322947190,1713537032730,-809.62980294,0.00014796,2]
[322947191,1713537032740,-350.0,0.00014797,2]
[322947192,1713537032750,-1445.9186,0.00014797,2]
[322947193,1713537032759,-4289.1781,0.00014797,2]
[322947194,1713537032769,-1000.0,0.00014797,2]
[322947195,1713537032779,-566.5425,0.00014797,2]
[322947196,1713537032789,-13822.66135846,0.00014797,2]
[322947197,1713537032808,-116015.00174154,0.00014797,2]
[322947198,1713537032818,-10000.0,0.00014798,2]
[322947199,1713537032827,-248.69915935,0.00014863,2]
[322947200,1713537032837,-155.26178673,0.00014883,2]
[322947201,1713537032847,-150.83,0.00014884,2]
[322947202,1713537032856,-500.0,0.00014891,2]
[322947203,1713537032865,-766.43,0.00014891,2]
[322947204,1713537032876,-500.0,0.00014891,2]
[322947205,1713537032890,-1824.32,0.00014892,2]
[322947206,1713537032899,-3794.64,0.00014892,2]
[322947207,1713537032909,-1108.92,0.00014892,2]
[322947208,1713537032920,-3012.59,0.00014892,2]
[322947209,1713537032930,-2074.68,0.00014892,2]
[322947210,1713537032943,-1067.03,0.00014892,2]
[322947211,1713537032954,-10348.22,0.00014892,2]
[322947212,1713537032963,-533.07,0.00014892,2]
[322947213,1713537032972,-6265.83,0.00014892,2]
[322947214,1713537032984,-5991.44,0.00014892,2]
[322947215,1713537032995,-2113.27,0.00014892,2]
[322947216,1713537033004,-4015.21,0.00014892,2]
[322947217,1713537033014,-2777.42,0.00014892,2]
[322947218,1713537033023,-7220.82,0.00014892,2]
[322947219,1713537033033,-1684.59,0.00014892,2]
[322947220,1713537033043,-6892.72,0.00014892,2]
[322947221,1713537033053,-5686.92,0.00014892,2]
[322947222,1713537033063,-2073.23,0.00014892,2]
[322947223,1713537033073,-10498.16,0.00014892,2]
[322947224,1713537033083,-776.8,0.00014892,2]
[322947225,1713537033093,-169.85582857,0.00014892,2]
[322947226,1713537033102,-6871.79,0.00014892,2]
[322947227,1713537033111,-837.56,0.00014892,2]
[322947228,1713537033121,-1602.58,0.00014892,2]
[322947229,1713537033130,-500.0,0.00014892,2]
[322947230,1713537033139,-1051.46,0.00014892,2]
[322947231,1713537033149,-12774.88,0.00014892,2]
[322947232,1713537033158,-5256.31,0.00014892,2]
[322947233,1713537033168,-758.4,0.00014892,2]
[322947234,1713537033178,-878.16,0.00014892,2]
[322947235,1713537033192,-2078.76,0.00014892,2]
[322947236,1713537033201,-3221.86,0.00014893,2]
[322947237,1713537033211,-3230.82,0.00014893,2]
[322947238,1713537033221,-1368.15,0.00014893,2]
[322947239,1713537033230,-3208.14,0.00014893,2]
[322947240,1713537033240,-500.0,0.00014893,2]
[322947241,1713537033249,-3726.08,0.00014893,2]
[322947242,1713537033259,-1169.79,0.00014893,2]
[322947243,1713537033269,-3658.96,0.00014893,2]
[322947244,1713537033279,-77964.39,0.00014893,2]
[322947245,1713537033289,-3986.08,0.00014893,2]
[322947246,1713537033298,-6845.9,0.00014893,2]
[322947247,1713537033313,-8321.32,0.00014893,2]
[322947248,1713537033322,-4761.38,0.00014893,2]
[322947249,1713537033332,-1986.83,0.00014893,2]
[322947250,1713537033341,-5979.74,0.00014893,2]
[322947251,1713537033351,-3396.65,0.00014893,2]
[322947252,1713537033360,-729.29,0.00014893,2]
[322947253,1713537033369,-500.0,0.00014893,2]
[322947254,1713537033378,-25160.38,0.00014893,2]
[322947255,1713537033388,-8924.63,0.00014893,2]
[322947256,1713537033397,-1361.4,0.00014893,2]
[322947257,1713537033407,-500.0,0.00014893,2]
[322947258,1713537033416,-7792.31,0.00014893,2]
[322947259,1713537033425,-4006.59,0.00014893,2]
[322947260,1713537033435,-3264.75,0.00014893,2]
[322947261,1713537033447,-3060.07,0.00014893,2]
[322947262,1713537033457,-5141.73,0.00014893,2]
[322947263,1713537033468,-8075.35,0.00014893,2]
[322947264,1713537033478,-3984.82,0.00014893,2]
[322947265,1713537033488,-2764.9,0.00014893,2]
[322947266,1713537033497,-248.22497601,0.00014893,2]
[322947267,1713537033507,-2590.3,0.00014893,2]
[322947268,1713537033517,-2810.91,0.00014893,2]
[322947269,1713537033526,-554.2,0.00014893,2]
[322947270,1713537033536,-11599.79,0.00014893,2]
[322947271,1713537033545,-11952.09,0.00014893,2]
[322947272,1713537033555,-500.0,0.00014893,2]
[322947273,1713537033564,-5678.65,0.00014893,2]
[322947274,1713537033574,-20731.51,0.00014893,2]
[322947275,1713537033583,-22481.43,0.00014893,2]
[322947276,1713537033593,-500.0,0.00014894,2]
[322947277,1713537033602,-500.0,0.00014894,2]
[322947278,1713537033612,-1275.82,0.00014894,2]
[322947279,1713537033621,-1629.45,0.00014894,2]
[322947280,1713537033630,-500.0,0.00014894,2]
[322947281,1713537033639,-928.11,0.00014894,2]
[322947282,1713537033649,-540.5089206,0.00014894,2]
[322947283,1713537033658,-2019.59,0.00014894,2]
[322947284,1713537033667,-499.17297707,0.00014894,2]
[322947285,1713537033676,-594.56462173,0.00014894,2]
[322947286,1713537033686,-1046.98,0.00014894,2]
[322947287,1713537033697,-500.0,0.00014894,2]
[322947288,1713537033706,-1786.71,0.00014894,2]
[322947289,1713537033715,-280.68061869,0.00014894,2]
[322947290,1713537033725,-500.0,0.00014894,2]
[322947291,1713537033733,-1441.07,0.00014894,2]
[322947292,1713537033742,-2529.2,0.00014894,2]
[322947293,1713537033751,-2099.03,0.00014894,2]
[322947294,1713537033761,-1211.65,0.00014894,2]
[322947296,1713537033770,-3097.93,0.00014894,2]
[322947297,1713537033780,-500.0,0.00014894,2]
[322947298,1713537033789,-4447.98,0.00014894,2]
[322947299,1713537033798,-266.91844622,0.00014894,2]
[322947300,1713537033808,-1874.95,0.00014894,2]
[322947301,1713537033818,-500.0,0.00014894,2]
[322947302,1713537033827,-500.0,0.00014894,2]
[322947304,1713537033837,-2824.81,0.00014894,2]
[322947305,1713537033847,-500.0,0.00014894,2]
[322947306,1713537033856,-500.0,0.00014894,2]
[322947307,1713537033866,-802.99,0.00014894,2]
[322947308,1713537033875,-500.0,0.00014894,2]
[322947309,1713537033885,-2731.37,0.00014894,2]
[322947310,1713537033895,-3426.07,0.00014894,2]
[322947311,1713537033906,-1908.84,0.00014894,2]
[322947312,1713537033917,-500.0,0.00014894,2]
[322947313,1713537033927,-992.44,0.00014894,2]
[322947314,1713537033937,-2002.88,0.00014894,2]
[322947315,1713537033953,-500.0,0.00014894,2]
[322947316,1713537033966,-500.0,0.00014894,2]
[322947317,1713537033978,-1644.48,0.00014894,2]
[322947318,1713537033989,-500.0,0.00014894,2]
[322947319,1713537033999,-2309.41,0.00014894,2]
[322947320,1713537034011,-500.0,0.00014894,2]
[322947321,1713537034372,-175.934788,0.00014894,2]
[322947322,1713537034385,-1463.675212,0.00014894,2]
[322947323,1713537034394,-500.0,0.00014894,2]
[322947324,1713537034403,-876.81,0.00014894,2]
[322947325,1713537034412,-621.28,0.00014894,2]
[322947326,1713537034421,-500.0,0.00014894,2]
[322947327,1713537034430,-2526.58,0.00014894,2]
[322947328,1713537034440,-77.69088394,0.00014894,2]
[322947329,1713537034451,-422.30911606,0.00014894,2]
[322947330,1713537034461,-500.0,0.00014894,2]
[322947331,1713537034470,-765.34,0.00014894,2]
[322947332,1713537034479,-500.0,0.00014894,2]
[322947333,1713537034488,-666.62,0.00014894,2]
[322947334,1713537034497,-500.0,0.00014894,2]
[322947335,1713537034507,-500.0,0.00014894,2]
[322947336,1713537034516,-1380.89,0.00014894,2]
[322947337,1713537034526,-1754.80835674,0.00014894,2]
[322947338,1713537034538,-523.30164326,0.00014894,2]
[322947339,1713537034548,-500.0,0.00014894,2]
[322947340,1713537034557,-579.62,0.00014894,2]
[322947341,1713537034566,-500.0,0.00014894,2]
[322947342,1713537034576,-5723.29,0.00014894,2]
[322947343,1713537034586,-500.0,0.00014894,2]
[322947344,1713537034595,-1077.05,0.00014894,2]
[322947345,1713537034604,-1718.98,0.00014894,2]
[322947346,1713537034613,-635.58,0.00014894,2]
[322947347,1713537034622,-791.09,0.00014894,2]
[322947348,1713537034631,-500.0,0.00014894,2]
[322947349,1713537034641,-500.0,0.00014894,2]
[322947350,1713537034651,-2063.21,0.00014894,2]
[322947351,1713537034660,-500.0,0.00014894,2]
[322947352,1713537034670,-940.5,0.00014894,2]
[322947353,1713537034679,-500.0,0.00014894,2]
[322947354,1713537034690,-500.0,0.00014894,2]
[322947355,1713537034700,-521.38,0.00014894,2]
[322947356,1713537034710,-500.0,0.00014894,2]
[322947357,1713537034719,-500.0,0.00014894,2]
[322947358,1713537034729,-1031.38,0.00014894,2]
[322947359,1713537034742,-500.0,0.00014894,2]
[322947360,1713537034751,-500.0,0.00014894,2]
[322947361,1713537034761,-567.61325497,0.00014894,2]
[322947362,1713537034773,-34.49674503,0.00014894,2]
[322947363,1713537034783,-1556.38,0.00014894,2]
[322947364,1713537034793,-500.0,0.00014894,2]
[322947365,1713537034802,-2249.91,0.00014894,2]
[322947366,1713537034812,-500.0,0.00014894,2]
[322947367,1713537034821,-1091.87,0.00014894,2]
[322947368,1713537034831,-500.0,0.00014894,2]
[322947369,1713537034841,-500.0,0.00014894,2]
[322947370,1713537034850,-906.2,0.00014894,2]
[322947371,1713537034860,-3706.74,0.00014894,2]
[322947372,1713537034869,-500.0,0.00014894,2]
[322947373,1713537034879,-2403.55,0.00014894,2]
[322947374,1713537034888,-500.0,0.00014894,2]
[322947375,1713537034898,-763.64,0.00014894,2]
[322947376,1713537034908,-500.0,0.00014894,2]
[322947377,1713537034917,-500.0,0.00014894,2]
[322947378,1713537034927,-921.08,0.00014894,2]
[322947379,1713537034937,-3511.49,0.00014894,2]
[322947380,1713537034954,-1404.14,0.00014894,2]
[322947381,1713537034965,-165.37393277,0.00014894,2]
[322947382,1713537034977,-334.62606723,0.00014894,2]
[322947383,1713537034987,-2147.85393277,0.00014894,2]
[322947384,1713537035000,-1350.26606723,0.00014894,2]
[322947385,1713537035010,-2145.31,0.00014894,2]
[322947386,1713537035020,-594.08,0.00014894,2]
[322947387,1713537035032,-9465.36911376,0.00014894,2]
[322947388,1713537035046,-855.05088624,0.00014894,2]
[322947389,1713537035056,-650.44,0.00014894,2]
[322947390,1713537035066,-1199.11,0.00014894,2]
[322947391,1713537035076,-501.55832429,0.00014894,2]
[322947392,1713537035086,-8204.69,0.00014894,2]
[322947393,1713537035095,-4668.98,0.00014894,2]
[322947394,1713537035105,-6187.6,0.00014894,2]
[322947395,1713537035115,-3810.9,0.00014894,2]
[322947396,1713537035124,-500.0,0.00014894,2]
[322947397,1713537035134,-500.0,0.00014894,2]
[322947398,1713537035143,-39517.05,0.00014894,2]
[322947399,1713537035152,-7886.86,0.00014894,2]
[322947400,1713537035162,-1840.24,0.00014894,2]
[322947401,1713537035172,-3083.12,0.00014894,2]
[322947402,1713537035182,-500.64802181,0.00014894,2]
[322947403,1713537035196,-14056.24,0.00014894,2]
[322947404,1713537035206,-608.88,0.00014894,2]
[322947405,1713537035215,-1000.36,0.00014894,2]
[322947406,1713537035225,-500.0,0.00014894,2]
[322947407,1713537035234,-500.0,0.00014894,2]
[322947408,1713537035245,-2369.83,0.00014894,2]
[322947409,1713537035255,-500.0,0.00014894,2]
[322947410,1713537035267,-45542.9,0.00014894,2]
[322947411,1713537035277,-500.0,0.00014894,2]
[322947412,1713537035287,-1254.4,0.00014894,2]
[322947413,1713537035297,-3082.1,0.00014894,2]
[322947414,1713537035306,-1541.09,0.00014894,2]
[322947415,1713537035316,-12995.34,0.00014894,2]
[322947416,1713537035326,-500.0,0.00014894,2]
[322947417,1713537035335,-500.0,0.00014894,2]
[322947418,1713537035345,-3788.28,0.00014894,2]
[322947419,1713537035355,-6261.64,0.00014894,2]
[322947420,1713537035365,-1863.07,0.00014894,2]
[322947421,1713537035375,-500.0,0.00014894,2]
[322947422,1713537035385,-500.0,0.00014894,2]
[322947423,1713537035395,-777.06,0.00014894,2]
[322947424,1713537035404,-500.0,0.00014894,2]
[322947425,1713537035414,-1226.94,0.00014894,2]
[322947426,1713537035424,-2218.68,0.00014894,2]
[322947427,1713537035433,-500.0,0.00014894,2]
[322947428,1713537035447,-5997.35,0.00014894,2]
[322947429,1713537035457,-831.11,0.00014894,2]
[322947430,1713537035466,-2799.37,0.00014894,2]
[322947431,1713537035476,-500.0,0.00014894,2]
[322947432,1713537035486,-500.0,0.00014894,2]
[322947433,1713537035495,-7134.69,0.00014894,2]
[322947434,1713537035504,-3147.64,0.00014894,2]
[322947435,1713537035514,-1051.45,0.00014894,2]
[322947436,1713537035526,-2718.21,0.00014894,2]
[322947437,1713537035536,-12198.03,0.00014894,2]
[322947438,1713537035545,-500.0,0.00014894,2]
[322947439,1713537035555,-500.0,0.00014894,2]
[322947440,1713537035565,-289.52815411,0.00014894,2]
[322947441,1713537035574,-1118.84,0.00014894,2]
[322947442,1713537035584,-1474.71,0.00014894,2]